[Event "Early-Titled-Tuesday-Blitz-May-07-2024"]
[Site "Chess.com"]
[Date "2024.05.07"]
[Round "3"]
[White "zsizsi99"]
[Black "ilqar_74"]
[Result "1-0"]
[WhiteElo "2530"]
[BlackElo "2833"]
[TimeControl "180+1"]
[EndTime "8:32:04 PDT"]
[Termination "zsizsi99 won by resignation"]

1. e4 {[%clk 0:03:00.9]} 1... c5 {[%clk 0:02:58.5]} 2. Nf3 {[%clk 0:03:00.5]}
2... d6 {[%clk 0:02:57]} 3. Bb5+ {[%clk 0:03:00.5]} 3... Nd7 {[%clk 0:02:55.9]}
4. O-O {[%clk 0:03:00.5]} 4... a6 {[%clk 0:02:55.5]} 5. Bxd7+ {[%clk 0:03:00.7]}
5... Bxd7 {[%clk 0:02:56.4]} 6. d4 {[%clk 0:03:01.1]} 6... cxd4 {[%clk
0:02:56.8]} 7. Qxd4 {[%clk 0:03:00.9]} 7... Nf6 {[%clk 0:02:57.4]} 8. Bg5 {[%clk
0:02:55.4]} 8... e6 {[%clk 0:02:57.6]} 9. Nc3 {[%clk 0:02:54.6]} 9... Be7 {[%clk
0:02:57.1]} 10. Rad1 {[%clk 0:02:53.2]} 10... Qc7 {[%clk 0:02:55.9]} 11. e5
{[%clk 0:02:47.8]} 11... dxe5 {[%clk 0:02:55.7]} 12. Qxe5 {[%clk 0:02:48]} 12...
Rc8 {[%clk 0:02:45.7]} 13. Rfe1 {[%clk 0:02:46.9]} 13... b5 {[%clk 0:02:32.6]}
14. Qd4 {[%clk 0:02:34.9]} 14... Bc6 {[%clk 0:02:27.6]} 15. Ne5 {[%clk
0:02:32.4]} 15... b4 {[%clk 0:02:17.9]} 16. Nxc6 {[%clk 0:02:19.4]} 16... Qxc6
{[%clk 0:02:17.9]} 17. Bxf6 {[%clk 0:01:57.2]} 17... gxf6 {[%clk 0:02:03.4]} 18.
Ne4 {[%clk 0:01:57.4]} 18... Rg8 {[%clk 0:01:56.6]} 19. g3 {[%clk 0:01:50]}
19... Rg6 {[%clk 0:01:46.7]} 20. c3 {[%clk 0:01:39.8]} 20... bxc3 {[%clk
0:01:42.2]} 21. Nxc3 {[%clk 0:01:33.8]} 21... Bc5 {[%clk 0:01:33.2]} 22. Qh4
{[%clk 0:01:28.2]} 22... h6 {[%clk 0:01:28.7]} 23. Re2 {[%clk 0:01:18.7]} 23...
Be7 {[%clk 0:01:26.2]} 24. Qf4 {[%clk 0:01:01.8]} 24... f5 {[%clk 0:01:21.9]}
25. Qe3 {[%clk 0:00:53.9]} 25... Kf8 {[%clk 0:01:11]} 26. Red2 {[%clk
0:00:35.5]} 26... Bf6 {[%clk 0:01:07.4]} 27. Rd6 {[%clk 0:00:33.8]} 27... Qc5
{[%clk 0:01:04.9]} 28. Qxc5 {[%clk 0:00:22.8]} 28... Rxc5 {[%clk 0:01:05.8]} 29.
Rxa6 {[%clk 0:00:21.1]} 29... Bxc3 {[%clk 0:01:05.6]} 30. bxc3 {[%clk
0:00:21.8]} 30... Rxc3 {[%clk 0:01:05.9]} 31. a4 {[%clk 0:00:19.9]} 31... Ra3
{[%clk 0:01:05.5]} 32. Ra7 {[%clk 0:00:18]} 32... f4 {[%clk 0:01:03.9]} 33. Kg2
{[%clk 0:00:15.9]} 33... fxg3 {[%clk 0:01:02.9]} 34. hxg3 {[%clk 0:00:16.3]}
34... Ra2 {[%clk 0:01:02.4]} 35. Rd3 {[%clk 0:00:12.6]} 35... Rf6 {[%clk
0:00:44.8]} 36. Rf3 {[%clk 0:00:13.1]} 36... Rxf3 {[%clk 0:00:45.4]} 37. Kxf3
{[%clk 0:00:13.8]} 37... Kg7 {[%clk 0:00:45.9]} 38. a5 {[%clk 0:00:12.8]} 38...
Kg6 {[%clk 0:00:46.4]} 39. Ra8 {[%clk 0:00:11.7]} 39... Kf5 {[%clk 0:00:46]} 40.
a6 {[%clk 0:00:12.2]} 40... Ra3+ {[%clk 0:00:46.3]} 41. Kg2 {[%clk 0:00:12.1]}
41... e5 {[%clk 0:00:46.5]} 42. Rf8 {[%clk 0:00:10.6]} 42... f6 {[%clk
0:00:45.1]} 43. Rh8 {[%clk 0:00:09.8]} 43... Kg6 {[%clk 0:00:43.9]} 44. Rg8+
{[%clk 0:00:09.6]} 44... Kf7 {[%clk 0:00:43.7]} 45. Ra8 {[%clk 0:00:08.9]} 45...
e4 {[%clk 0:00:43.7]} 46. a7 {[%clk 0:00:09.3]} 46... Ra1 {[%clk 0:00:41.5]} 47.
Rh8 {[%clk 0:00:08.9]} 47... Rxa7 {[%clk 0:00:36.6]} 48. Rh7+ {[%clk 0:00:09.1]}
1-0

[Event "Early-Titled-Tuesday-Blitz-May-07-2024"]
[Site "Chess.com"]
[Date "2024.05.07"]
[Round "3"]
[White "Anton_Demchenko"]
[Black "Evan_Attaker"]
[Result "1-0"]
[WhiteElo "2926"]
[BlackElo "2629"]
[TimeControl "180+1"]
[EndTime "8:32:04 PDT"]
[Termination "Anton_Demchenko won by resignation"]

1. e4 {[%clk 0:02:56.7]} 1... d6 {[%clk 0:02:57.4]} 2. d4 {[%clk 0:02:55.4]}
2... g6 {[%clk 0:02:58]} 3. Nf3 {[%clk 0:02:54.8]} 3... Nf6 {[%clk 0:02:58.5]}
4. Nc3 {[%clk 0:02:53.9]} 4... Bg7 {[%clk 0:02:59]} 5. Be2 {[%clk 0:02:54.7]}
5... O-O {[%clk 0:02:59.5]} 6. O-O {[%clk 0:02:55.4]} 6... c5 {[%clk 0:03:00.2]}
7. d5 {[%clk 0:02:53.7]} 7... Na6 {[%clk 0:02:59.5]} 8. Re1 {[%clk 0:02:50.3]}
8... Nc7 {[%clk 0:02:59.5]} 9. a4 {[%clk 0:02:50.4]} 9... a6 {[%clk 0:02:59.8]}
10. Bf4 {[%clk 0:02:45.6]} 10... Bd7 {[%clk 0:02:58]} 11. h3 {[%clk 0:02:10.5]}
11... b5 {[%clk 0:02:56]} 12. axb5 {[%clk 0:02:11.1]} 12... Nxb5 {[%clk
0:02:53]} 13. e5 {[%clk 0:02:01.9]} 13... Ne8 {[%clk 0:02:23.6]} 14. Ne4 {[%clk
0:01:57.5]} 14... Qb6 {[%clk 0:01:55.3]} 15. c3 {[%clk 0:01:41.6]} 15... Bf5
{[%clk 0:01:39.3]} 16. Ng3 {[%clk 0:01:35.4]} 16... Bd7 {[%clk 0:01:39.1]} 17.
Bf1 {[%clk 0:01:35.2]} 17... Nec7 {[%clk 0:01:31.7]} 18. Qd2 {[%clk 0:01:24.1]}
18... Rfd8 {[%clk 0:01:13.1]} 19. Bh6 {[%clk 0:01:07.6]} 19... Bh8 {[%clk
0:01:05.2]} 20. Rad1 {[%clk 0:00:47.8]} 20... e6 {[%clk 0:00:51]} 21. c4 {[%clk
0:00:44.1]} 21... Nd4 {[%clk 0:00:50.1]} 22. Nxd4 {[%clk 0:00:42.6]} 22... cxd4
{[%clk 0:00:51]} 23. exd6 {[%clk 0:00:42]} 23... Qxd6 {[%clk 0:00:51.9]} 24. Ne4
{[%clk 0:00:42]} 24... Qe5 {[%clk 0:00:34.4]} 25. Bf4 {[%clk 0:00:40.2]} 25...
Qh5 {[%clk 0:00:22]} 26. Bxc7 {[%clk 0:00:40.6]} 26... Rdc8 {[%clk 0:00:22.6]}
27. d6 {[%clk 0:00:33.3]} 27... Ba4 {[%clk 0:00:22.4]} 28. Ra1 {[%clk
0:00:32.1]} 28... Bb3 {[%clk 0:00:22.9]} 29. Ra5 {[%clk 0:00:30.1]} 29... Qh4
{[%clk 0:00:21.7]} 30. c5 {[%clk 0:00:25.3]} 30... Bd5 {[%clk 0:00:19.9]} 31.
Bb6 {[%clk 0:00:22.2]} 31... Bxe4 {[%clk 0:00:19.3]} 32. g3 {[%clk 0:00:21.2]}
32... Qf6 {[%clk 0:00:16.4]} 33. Rxe4 {[%clk 0:00:21.4]} 33... Qf5 {[%clk
0:00:16.8]} 34. Re1 {[%clk 0:00:20]} 34... e5 {[%clk 0:00:17.3]} 35. Bg2 {[%clk
0:00:19.3]} 35... Rab8 {[%clk 0:00:16.6]} 36. Rxa6 {[%clk 0:00:18.9]} 36... Qe6
{[%clk 0:00:15.7]} 37. Ra7 {[%clk 0:00:17.3]} 37... Qb3 {[%clk 0:00:12.5]} 38.
d7 {[%clk 0:00:16.9]} 38... Rf8 {[%clk 0:00:11.9]} 39. d8=Q {[%clk 0:00:15.8]}
39... Rbxd8 {[%clk 0:00:12]} 40. Bxd8 {[%clk 0:00:16.7]} 40... Rxd8 {[%clk
0:00:12.7]} 41. c6 {[%clk 0:00:16.8]} 41... f5 {[%clk 0:00:12.3]} 42. Rb7 {[%clk
0:00:16.3]} 42... Rc8 {[%clk 0:00:13.2]} 43. Rxb3 {[%clk 0:00:15.8]} 1-0

[Event "Early-Titled-Tuesday-Blitz-May-07-2024"]
[Site "Chess.com"]
[Date "2024.05.07"]
[Round "3"]
[White "Niilo1"]
[Black "Silent-Killer100"]
[Result "0-1"]
[WhiteElo "2308"]
[BlackElo "2571"]
[TimeControl "180+1"]
[EndTime "8:32:04 PDT"]
[Termination "Silent-Killer100 won on time"]

1. e4 {[%clk 0:03:00.9]} 1... b6 {[%clk 0:03:00]} 2. d4 {[%clk 0:02:59.9]} 2...
Bb7 {[%clk 0:03:00.4]} 3. Nc3 {[%clk 0:02:59.2]} 3... g6 {[%clk 0:03:00.5]} 4.
Nf3 {[%clk 0:02:57.9]} 4... Bg7 {[%clk 0:03:00.5]} 5. Bc4 {[%clk 0:02:57.6]}
5... e6 {[%clk 0:03:00.7]} 6. e5 {[%clk 0:02:49]} 6... d6 {[%clk 0:02:58]} 7.
Be3 {[%clk 0:02:37.6]} 7... Ne7 {[%clk 0:02:57.6]} 8. exd6 {[%clk 0:02:34.9]}
8... cxd6 {[%clk 0:02:55.1]} 9. O-O {[%clk 0:02:21.6]} 9... O-O {[%clk
0:02:54.4]} 10. Qd2 {[%clk 0:02:09.2]} 10... Nf5 {[%clk 0:02:40.1]} 11. d5
{[%clk 0:02:00.8]} 11... e5 {[%clk 0:02:36.8]} 12. g4 {[%clk 0:01:36.8]} 12...
Nxe3 {[%clk 0:02:34.3]} 13. fxe3 {[%clk 0:01:37.7]} 13... f5 {[%clk 0:02:29.1]}
14. gxf5 {[%clk 0:01:33.1]} 14... gxf5 {[%clk 0:02:30]} 15. Kh1 {[%clk 0:01:24]}
15... Kh8 {[%clk 0:02:26]} 16. Rg1 {[%clk 0:01:23.9]} 16... Bh6 {[%clk
0:02:22.8]} 17. Qf2 {[%clk 0:01:04.7]} 17... Nd7 {[%clk 0:02:17.7]} 18. Nh4
{[%clk 0:01:03.4]} 18... Qf6 {[%clk 0:01:54.4]} 19. Raf1 {[%clk 0:01:00.2]}
19... a6 {[%clk 0:01:33.4]} 20. Nxf5 {[%clk 0:00:52.9]} 20... b5 {[%clk
0:01:31.7]} 21. Bb3 {[%clk 0:00:52.6]} 21... Nc5 {[%clk 0:01:17.8]} 22. Qg2
{[%clk 0:00:41.8]} 22... Nxb3 {[%clk 0:00:26.6]} 23. axb3 {[%clk 0:00:41.2]}
23... b4 {[%clk 0:00:25.3]} 24. Ne2 {[%clk 0:00:18.1]} 24... Rg8 {[%clk
0:00:25.6]} 25. Neg3 {[%clk 0:00:14.9]} 25... e4 {[%clk 0:00:20.5]} 26. Qh3
{[%clk 0:00:12.5]} 26... Bg5 {[%clk 0:00:16.8]} 27. Nh5 {[%clk 0:00:11.3]} 27...
Qh6 {[%clk 0:00:15.9]} 28. Qg4 {[%clk 0:00:03.4]} 28... Qg6 {[%clk 0:00:12.2]}
29. Qh3 {[%clk 0:00:02.4]} 29... Bxd5 {[%clk 0:00:10.9]} 30. Nf4 {[%clk
0:00:02.6]} 30... Qf7 {[%clk 0:00:11]} 31. Nxd5 {[%clk 0:00:02.5]} 31... Qxd5
{[%clk 0:00:11.9]} 32. Qg4 {[%clk 0:00:01.9]} 32... Bf6 {[%clk 0:00:10.1]} 33.
Qh3 {[%clk 0:00:00.3]} 33... Be5 {[%clk 0:00:09.6]} 0-1

[Event "Early-Titled-Tuesday-Blitz-May-07-2024"]
[Site "Chess.com"]
[Date "2024.05.07"]
[Round "3"]
[White "Hoshka"]
[Black "Lily_Schirmbeck"]
[Result "1-0"]
[WhiteElo "2054"]
[BlackElo "1625"]
[TimeControl "180+1"]
[EndTime "8:32:04 PDT"]
[Termination "Hoshka won on time"]

1. d4 {[%clk 0:03:00]} 1... d5 {[%clk 0:02:55.2]} 2. c4 {[%clk 0:02:59.7]} 2...
e6 {[%clk 0:02:54.8]} 3. g3 {[%clk 0:02:59.4]} 3... Nf6 {[%clk 0:02:53.2]} 4.
Bg2 {[%clk 0:02:59.1]} 4... b6 {[%clk 0:02:52.6]} 5. cxd5 {[%clk 0:02:57.6]}
5... exd5 {[%clk 0:02:52]} 6. Nc3 {[%clk 0:02:57.2]} 6... Bb7 {[%clk 0:02:51.7]}
7. Nf3 {[%clk 0:02:48.3]} 7... Bd6 {[%clk 0:02:42.5]} 8. O-O {[%clk 0:02:43.7]}
8... O-O {[%clk 0:02:37]} 9. Ne5 {[%clk 0:02:31.8]} 9... Nbd7 {[%clk 0:02:32.5]}
10. f4 {[%clk 0:02:29.8]} 10... Re8 {[%clk 0:02:13.4]} 11. Nb5 {[%clk
0:02:21.3]} 11... Bf8 {[%clk 0:02:05.5]} 12. Re1 {[%clk 0:02:09.1]} 12... c5
{[%clk 0:01:56.2]} 13. e3 {[%clk 0:01:50.9]} 13... a6 {[%clk 0:01:32.9]} 14. Nc3
{[%clk 0:01:50.4]} 14... Rc8 {[%clk 0:01:31]} 15. g4 {[%clk 0:01:36.3]} 15...
Qc7 {[%clk 0:01:12.8]} 16. g5 {[%clk 0:01:35.4]} 16... Ne4 {[%clk 0:01:08.4]}
17. Nxe4 {[%clk 0:01:25.9]} 17... dxe4 {[%clk 0:01:07.6]} 18. Qg4 {[%clk
0:01:03.5]} 18... f6 {[%clk 0:01:01.5]} 19. Nxd7 {[%clk 0:00:59.4]} 19... Rcd8
{[%clk 0:00:29.6]} 20. Nxf8 {[%clk 0:00:58.9]} 20... Rxf8 {[%clk 0:00:28.9]} 21.
gxf6 {[%clk 0:00:56.8]} 21... Rxf6 {[%clk 0:00:27.9]} 22. dxc5 {[%clk
0:00:55.1]} 22... Qxc5 {[%clk 0:00:25]} 23. Rd1 {[%clk 0:00:51]} 23... Rxd1+
{[%clk 0:00:20.4]} 24. Qxd1 {[%clk 0:00:50.7]} 24... Rd6 {[%clk 0:00:20.3]} 25.
Qe2 {[%clk 0:00:49]} 25... a5 {[%clk 0:00:18.7]} 26. Bd2 {[%clk 0:00:44.8]}
26... Ba6 {[%clk 0:00:16.5]} 27. Qe1 {[%clk 0:00:42.3]} 27... Qc2 {[%clk
0:00:15.6]} 28. Bc3 {[%clk 0:00:40.5]} 28... Qd3 {[%clk 0:00:12.8]} 29. Bf1
{[%clk 0:00:27.8]} 29... Qxf1+ {[%clk 0:00:08.4]} 30. Qxf1 {[%clk 0:00:27.4]}
30... Bxf1 {[%clk 0:00:09.2]} 31. Kxf1 {[%clk 0:00:27.1]} 31... Rd3 {[%clk
0:00:09]} 32. Ke2 {[%clk 0:00:26.7]} 32... b5 {[%clk 0:00:08.3]} 33. Rd1 {[%clk
0:00:26.3]} 33... Rxd1 {[%clk 0:00:04]} 34. Kxd1 {[%clk 0:00:26]} 34... b4
{[%clk 0:00:04.6]} 35. Bd4 {[%clk 0:00:26]} 35... Kf7 {[%clk 0:00:03.9]} 36. b3
{[%clk 0:00:24.9]} 36... Ke6 {[%clk 0:00:02.9]} 37. Bxg7 {[%clk 0:00:24.1]}
37... Kf5 {[%clk 0:00:03.1]} 38. Ke2 {[%clk 0:00:16.5]} 1-0

[Event "Early-Titled-Tuesday-Blitz-May-07-2024"]
[Site "Chess.com"]
[Date "2024.05.07"]
[Round "3"]
[White "NM_Antelacus"]
[Black "Happy1712Drummer"]
[Result "0-1"]
[WhiteElo "2287"]
[BlackElo "2507"]
[TimeControl "180+1"]
[EndTime "8:32:05 PDT"]
[Termination "Happy1712Drummer won on time"]

1. e4 {[%clk 0:03:00.9]} 1... c5 {[%clk 0:02:57.8]} 2. Nc3 {[%clk 0:02:59.9]}
2... Nc6 {[%clk 0:02:56.2]} 3. g3 {[%clk 0:02:59.2]} 3... g6 {[%clk 0:02:56.7]}
4. Bg2 {[%clk 0:02:59.4]} 4... Bg7 {[%clk 0:02:57.4]} 5. d3 {[%clk 0:03:00]}
5... Rb8 {[%clk 0:02:55.5]} 6. a4 {[%clk 0:02:56.1]} 6... a6 {[%clk 0:02:55]} 7.
f4 {[%clk 0:02:55.1]} 7... b5 {[%clk 0:02:54.8]} 8. axb5 {[%clk 0:02:54.8]} 8...
axb5 {[%clk 0:02:55.7]} 9. Nf3 {[%clk 0:02:53.9]} 9... b4 {[%clk 0:02:53.8]} 10.
Ne2 {[%clk 0:02:53]} 10... d6 {[%clk 0:02:53.5]} 11. O-O {[%clk 0:02:52.5]}
11... e6 {[%clk 0:02:42.7]} 12. h3 {[%clk 0:02:50.2]} 12... Nge7 {[%clk
0:02:42.9]} 13. g4 {[%clk 0:02:49.7]} 13... O-O {[%clk 0:02:12.7]} 14. Ng3
{[%clk 0:02:47.6]} 14... Nd4 {[%clk 0:02:11.4]} 15. Nxd4 {[%clk 0:02:37.6]}
15... Bxd4+ {[%clk 0:02:11.4]} 16. Kh1 {[%clk 0:02:35]} 16... f5 {[%clk
0:02:07.9]} 17. g5 {[%clk 0:02:32]} 17... e5 {[%clk 0:01:59.9]} 18. h4 {[%clk
0:02:22.1]} 18... fxe4 {[%clk 0:01:47.9]} 19. Nxe4 {[%clk 0:02:18.2]} 19... exf4
{[%clk 0:01:42.6]} 20. Rxf4 {[%clk 0:02:11]} 20... Nf5 {[%clk 0:01:41.5]} 21. c3
{[%clk 0:02:05.9]} 21... Be5 {[%clk 0:01:41.2]} 22. Rf1 {[%clk 0:02:03.5]} 22...
bxc3 {[%clk 0:01:36]} 23. bxc3 {[%clk 0:02:02.5]} 23... d5 {[%clk 0:01:36.6]}
24. Nxc5 {[%clk 0:01:47.6]} 24... Ng3+ {[%clk 0:01:35.4]} 25. Kg1 {[%clk
0:01:47.5]} 25... Nxf1 {[%clk 0:01:36]} 26. Bxf1 {[%clk 0:01:46]} 26... Bxc3
{[%clk 0:01:36.1]} 27. Be3 {[%clk 0:01:28.3]} 27... Bxa1 {[%clk 0:00:53.1]} 28.
Qxa1 {[%clk 0:01:26.2]} 28... Bf5 {[%clk 0:00:53]} 29. Bd4 {[%clk 0:01:03.6]}
29... Qe7 {[%clk 0:00:45.4]} 30. Bg2 {[%clk 0:00:49.1]} 30... Rfd8 {[%clk
0:00:27.2]} 31. Qc1 {[%clk 0:00:29.2]} 31... Rbc8 {[%clk 0:00:25.5]} 32. Kh1
{[%clk 0:00:15.7]} 32... Bxd3 {[%clk 0:00:23.9]} 33. Qc3 {[%clk 0:00:10]} 33...
Bf5 {[%clk 0:00:22.6]} 34. Qa5 {[%clk 0:00:05.7]} 34... Ra8 {[%clk 0:00:10.9]}
35. Qb6 {[%clk 0:00:04]} 35... Rab8 {[%clk 0:00:10.6]} 36. Qa5 {[%clk
0:00:03.7]} 36... Rb1+ {[%clk 0:00:10.5]} 37. Kh2 {[%clk 0:00:04]} 37... Qd6+
{[%clk 0:00:11.1]} 0-1

[Event "Early-Titled-Tuesday-Blitz-May-07-2024"]
[Site "Chess.com"]
[Date "2024.05.07"]
[Round "3"]
[White "profedechess93"]
[Black "Levanzovsky"]
[Result "0-1"]
[WhiteElo "2642"]
[BlackElo "2501"]
[TimeControl "180+1"]
[EndTime "8:32:06 PDT"]
[Termination "Levanzovsky won by resignation"]

1. e4 {[%clk 0:03:00.9]} 1... c5 {[%clk 0:02:56.4]} 2. Nf3 {[%clk 0:03:00.4]}
2... d6 {[%clk 0:02:52.4]} 3. Bb5+ {[%clk 0:02:59.6]} 3... Nd7 {[%clk 0:02:51]}
4. d4 {[%clk 0:02:59.4]} 4... cxd4 {[%clk 0:02:49.9]} 5. Qxd4 {[%clk 0:03:00.3]}
5... a6 {[%clk 0:02:48.5]} 6. Bxd7+ {[%clk 0:03:00.9]} 6... Bxd7 {[%clk
0:02:48.5]} 7. Bg5 {[%clk 0:03:01.8]} 7... h6 {[%clk 0:02:46.7]} 8. Bh4 {[%clk
0:03:01.5]} 8... Rc8 {[%clk 0:02:47.1]} 9. Nc3 {[%clk 0:03:01.3]} 9... e5 {[%clk
0:02:44.1]} 10. Qd3 {[%clk 0:03:01.4]} 10... g5 {[%clk 0:02:44.4]} 11. Bg3
{[%clk 0:03:01.9]} 11... Nf6 {[%clk 0:02:44]} 12. O-O-O {[%clk 0:03:02.2]} 12...
b5 {[%clk 0:02:30.5]} 13. Rhe1 {[%clk 0:02:55.4]} 13... b4 {[%clk 0:02:26.5]}
14. Nd5 {[%clk 0:02:55.5]} 14... Nxd5 {[%clk 0:02:26.3]} 15. exd5 {[%clk
0:02:56.1]} 15... Bg7 {[%clk 0:02:04.4]} 16. h4 {[%clk 0:02:14.8]} 16... g4
{[%clk 0:01:53.2]} 17. Nd4 {[%clk 0:02:04.5]} 17... O-O {[%clk 0:01:44]} 18. Nf5
{[%clk 0:02:04.6]} 18... Bxf5 {[%clk 0:01:37.9]} 19. Qxf5 {[%clk 0:02:03.1]}
19... Rc4 {[%clk 0:01:33]} 20. f3 {[%clk 0:01:32.6]} 20... Qc8 {[%clk
0:01:28.3]} 21. Qd3 {[%clk 0:01:19.4]} 21... f5 {[%clk 0:01:20.3]} 22. Kb1
{[%clk 0:01:08.2]} 22... e4 {[%clk 0:01:07.8]} 23. fxe4 {[%clk 0:01:04]} 23...
f4 {[%clk 0:01:08.1]} 24. Bf2 {[%clk 0:01:02]} 24... Be5 {[%clk 0:01:08.2]} 25.
Qb3 {[%clk 0:00:45.9]} 25... a5 {[%clk 0:01:06.8]} 26. Qa4 {[%clk 0:00:44.8]}
26... Qc7 {[%clk 0:00:57.3]} 27. Qb3 {[%clk 0:00:34.8]} 27... a4 {[%clk
0:00:50.1]} 28. Qd3 {[%clk 0:00:34.6]} 28... Rc8 {[%clk 0:00:42.9]} 29. Re2
{[%clk 0:00:31.3]} 29... a3 {[%clk 0:00:29.6]} 30. b3 {[%clk 0:00:23.6]} 30...
Rc3 {[%clk 0:00:28.7]} 31. Qd2 {[%clk 0:00:23.6]} 31... f3 {[%clk 0:00:10.5]}
32. gxf3 {[%clk 0:00:20]} 32... gxf3 {[%clk 0:00:11.4]} 33. Ree1 {[%clk
0:00:16.2]} 33... Rxc2 {[%clk 0:00:10.1]} 34. Rg1+ {[%clk 0:00:08.3]} 34... Kh7
{[%clk 0:00:09.6]} 35. Rc1 {[%clk 0:00:06]} 35... Rxd2 {[%clk 0:00:05.7]} 36.
Rxc7+ {[%clk 0:00:06.2]} 36... Rxc7 {[%clk 0:00:06.2]} 37. Bd4 {[%clk
0:00:05.4]} 37... Bxd4 {[%clk 0:00:05.1]} 0-1

[Event "Early-Titled-Tuesday-Blitz-May-07-2024"]
[Site "Chess.com"]
[Date "2024.05.07"]
[Round "3"]
[White "LileKoridze"]
[Black "FontVella8"]
[Result "1/2-1/2"]
[WhiteElo "2387"]
[BlackElo "2681"]
[TimeControl "180+1"]
[EndTime "8:32:07 PDT"]
[Termination "Game drawn by repetition"]

1. d4 {[%clk 0:03:00.9]} 1... d5 {[%clk 0:02:58.2]} 2. c4 {[%clk 0:03:01.1]}
2... e6 {[%clk 0:02:58.6]} 3. Nf3 {[%clk 0:03:00.9]} 3... Nf6 {[%clk 0:02:58.8]}
4. g3 {[%clk 0:03:00.9]} 4... Bb4+ {[%clk 0:02:58.4]} 5. Bd2 {[%clk 0:03:01]}
5... Be7 {[%clk 0:02:58.8]} 6. Bg2 {[%clk 0:03:01.2]} 6... O-O {[%clk 0:02:57]}
7. O-O {[%clk 0:03:01.6]} 7... c6 {[%clk 0:02:57.6]} 8. Nc3 {[%clk 0:03:01.2]}
8... Nbd7 {[%clk 0:02:54.5]} 9. Qc2 {[%clk 0:02:46]} 9... b6 {[%clk 0:02:44.8]}
10. b3 {[%clk 0:02:44.4]} 10... Ba6 {[%clk 0:02:42.5]} 11. Rfd1 {[%clk
0:02:17.8]} 11... Rc8 {[%clk 0:02:36.3]} 12. e4 {[%clk 0:02:13]} 12... dxc4
{[%clk 0:02:35.9]} 13. bxc4 {[%clk 0:02:12.8]} 13... Bxc4 {[%clk 0:02:34.1]} 14.
Bf4 {[%clk 0:01:50.2]} 14... b5 {[%clk 0:02:30]} 15. Nd2 {[%clk 0:01:48.5]}
15... Nb6 {[%clk 0:02:26.6]} 16. Nxc4 {[%clk 0:01:40.2]} 16... Nxc4 {[%clk
0:02:26.8]} 17. d5 {[%clk 0:01:32.1]} 17... cxd5 {[%clk 0:02:21.4]} 18. exd5
{[%clk 0:01:32.4]} 18... Qa5 {[%clk 0:02:06]} 19. Qb3 {[%clk 0:01:24]} 19... e5
{[%clk 0:01:56.8]} 20. Bg5 {[%clk 0:01:18.6]} 20... Nd6 {[%clk 0:01:39.4]} 21.
Bxf6 {[%clk 0:01:04.1]} 21... Rxc3 {[%clk 0:01:32.6]} 22. Bxe7 {[%clk
0:01:01.6]} 22... Rxb3 {[%clk 0:01:19.8]} 23. axb3 {[%clk 0:01:00.9]} 23... Qb6
{[%clk 0:01:17]} 24. Bxf8 {[%clk 0:01:00.5]} 24... Kxf8 {[%clk 0:01:17.9]} 25.
Rdc1 {[%clk 0:01:00.4]} 25... g6 {[%clk 0:00:59]} 26. Rc6 {[%clk 0:00:55.4]}
26... Qd4 {[%clk 0:00:59.1]} 27. Rac1 {[%clk 0:00:54.8]} 27... Nf5 {[%clk
0:00:45.8]} 28. Bf3 {[%clk 0:00:48.8]} 28... e4 {[%clk 0:00:44.7]} 29. Rd1
{[%clk 0:00:41.3]} 29... Qb4 {[%clk 0:00:38.4]} 30. Be2 {[%clk 0:00:30.5]} 30...
Nd4 {[%clk 0:00:34.6]} 31. Rc8+ {[%clk 0:00:30]} 31... Kg7 {[%clk 0:00:33]} 32.
Bf1 {[%clk 0:00:30]} 32... Nf3+ {[%clk 0:00:28.7]} 33. Kg2 {[%clk 0:00:29.7]}
33... Qxb3 {[%clk 0:00:28.4]} 34. Rcc1 {[%clk 0:00:25.9]} 34... Ne5 {[%clk
0:00:25.9]} 35. d6 {[%clk 0:00:26.4]} 35... Qf3+ {[%clk 0:00:21.7]} 36. Kg1
{[%clk 0:00:26.8]} 36... e3 {[%clk 0:00:22.5]} 37. fxe3 {[%clk 0:00:27]} 37...
Qxe3+ {[%clk 0:00:21.9]} 38. Kh1 {[%clk 0:00:26.6]} 38... Nd7 {[%clk 0:00:15.1]}
39. Bxb5 {[%clk 0:00:24.6]} 39... Qe4+ {[%clk 0:00:08.2]} 40. Kg1 {[%clk
0:00:23.9]} 40... Qe3+ {[%clk 0:00:07.9]} 41. Kf1 {[%clk 0:00:22.6]} 41... Qf3+
{[%clk 0:00:05.9]} 42. Kg1 {[%clk 0:00:21.3]} 42... Qe3+ {[%clk 0:00:06.1]} 43.
Kg2 {[%clk 0:00:20.3]} 43... Qe4+ {[%clk 0:00:06.4]} 44. Kg1 {[%clk 0:00:19.3]}
44... Qe3+ {[%clk 0:00:02.9]} 1/2-1/2